fUST/lending_fUST_20240204
["ID","MTS","AMOUNT","RATE_DAILY","PERIOD"]
[313253727,1707029441862,-1010.36,0.00024657,2]
[313253728,1707029441871,-525.86341801,0.00024657,2]
[313253729,1707029441880,-500.0,0.00024657,2]
[313253730,1707029441889,-492.92467008,0.00024657,2]
[313253731,1707029441898,-500.0,0.00024657,2]
[313253732,1707029441906,-509.79810747,0.00024657,2]
[313253733,1707029441915,-500.0,0.00024657,2]
[313253734,1707029441924,-500.0,0.00024657,2]
[313253735,1707029441933,-517.7661831,0.00024657,2]
[313253736,1707029441942,-513.5795342,0.00024657,2]
[313253737,1707029441951,-500.0,0.00024657,2]
[313253738,1707029441960,-234.71162566,0.00024657,2]
[313253739,1707029441969,-500.0,0.00024657,2]
[313253740,1707029441978,-569.65219296,0.00024657,2]
[313253741,1707029441987,-500.0,0.00024657,2]
[313253742,1707029441996,-517.59775519,0.00024657,2]
[313253743,1707029442005,-541.91131978,0.00024657,2]
[313253744,1707029442014,-500.0,0.00024657,2]
[313253745,1707029442023,-526.7958311,0.00024657,2]
[313253746,1707029442032,-360.92415428,0.00024657,2]
[313253747,1707029442041,-504.46409176,0.00024657,2]
[313253748,1707029442051,-520.26723171,0.00024657,2]
[313253749,1707029442060,-3430.98,0.00024657,2]
[313253750,1707029442070,-288.68338619,0.00024804,2]
[313253751,1707029442079,-29486.12523333,0.00024827,2]
[313253752,1707029442088,-205.83929044,0.0002483,2]
[313253753,1707029442097,-1038.77,0.00024926,2]
[313253754,1707029442106,-340.00014742,0.00024926,2]
[313253755,1707029442115,-500.0,0.00024926,2]
[313253756,1707029442124,-461.69634284,0.00024926,2]
[313253757,1707029442133,-500.0,0.00024926,2]
[313253758,1707029442142,-572.10429613,0.00024926,2]
[313253759,1707029442150,-514.34957686,0.00024926,2]
[313253760,1707029442159,-617.2589617,0.00024926,2]
[313253761,1707029442168,-9656.85680426,0.00024927,2]
[313253762,1707029442177,-155.58287791,0.00024927,2]
[313253763,1707029442186,-642.4471571,0.00024927,2]
[313253764,1707029442195,-161.19857963,0.00024927,2]
[313253765,1707029442204,-155.56735706,0.00024927,2]
[313253766,1707029442212,-155.03255684,0.00024927,2]
[313253767,1707029442221,-155.59797154,0.00024927,2]
[313253768,1707029442230,-233.99326596,0.00024927,2]
[313253769,1707029442240,-2354.36523398,0.00024927,2]
[313253770,1707029442250,-1267.12305076,0.00024927,2]
[313253771,1707029442260,-260.28671862,0.00024927,2]
[313253772,1707029442269,-591.21263005,0.00024927,2]
[313253773,1707029442278,-247.17539351,0.00024927,2]
[313253774,1707029442287,-903.88612378,0.00024927,2]
[313253775,1707029442298,-2914.2729053,0.00024927,2]
[313253776,1707029442307,-175.42240404,0.00024927,2]
[313253777,1707029442316,-1247.37782487,0.00024927,2]
[313253778,1707029442325,-155.03255684,0.00024927,2]
[313253779,1707029442335,-1581.46279222,0.00024927,2]
[313253780,1707029442345,-678.69563899,0.00024927,2]
[313253781,1707029442354,-155.59765902,0.00024927,2]
[313253782,1707029442363,-4922.76507922,0.00024927,2]
[313253783,1707029442372,-226.29813158,0.00024927,2]
[313253784,1707029442382,-426.52191671,0.00024927,2]
[313253785,1707029442391,-561.60154591,0.00024927,2]
[313253786,1707029442400,-1207.2278013,0.00024927,2]
[313253787,1707029442410,-155.86936177,0.00024927,2]
[313253788,1707029442420,-156.15620761,0.00024928,2]
[313253789,1707029442429,-1038.77,0.00024928,2]
[313253790,1707029442438,-9295.80850304,0.00024929,2]
[313253791,1707029442448,-175.52348304,0.00024929,2]
[313253792,1707029442457,-155.0,0.00024929,2]
[313253793,1707029442467,-2822.15554218,0.00024929,2]
[313253794,1707029442477,-556.52643287,0.00024929,2]
[313253795,1707029442487,-523.0723444,0.00024929,2]
[313253796,1707029442497,-852.39493411,0.00024929,2]
[313253797,1707029442506,-155.61430003,0.00024929,2]
[313253798,1707029442516,-3975.13505251,0.00024929,2]
[313253799,1707029442525,-612.46577875,0.00024929,2]
[313253800,1707029442535,-166.85150013,0.00024929,2]
[313253801,1707029442544,-921.26479672,0.00024929,2]
[313253802,1707029442556,-5499.91005355,0.00024929,2]
[313253803,1707029442566,-1038.77,0.00024929,2]
[313253804,1707029442575,-1261.83126137,0.0002493,2]
[313253805,1707029442584,-33836.23702035,0.0002493,2]
[313253806,1707029442594,-500.0,0.0002493,2]
[313253807,1707029442604,-1038.77,0.0002493,2]
[313253808,1707029442613,-151.0,0.0002493,2]
[313253809,1707029442622,-500.0,0.00024931,2]
[313253810,1707029442631,-510.50290744,0.00024931,2]
[313253811,1707029442640,-1000.0,0.00024931,2]
[313253812,1707029442650,-484.86349625,0.00024931,2]
[313253813,1707029442659,-515.30809093,0.00024931,2]
[313253814,1707029442668,-511.22380762,0.00024931,2]
[313253815,1707029442678,-504.51339849,0.00024931,2]
[313253816,1707029442687,-503.61160546,0.00024931,2]
[313253818,1707029442695,-514.86282972,0.00024931,2]
[313253820,1707029442705,-503.65612438,0.00024931,2]
[313253822,1707029442714,-517.55536754,0.00024931,2]
[313253824,1707029442723,-517.29451564,0.00024931,2]
[313253825,1707029442732,-512.82552519,0.00024931,2]
[313253826,1707029442741,-172.28296275,0.00024931,2]
[313253828,1707029442750,-509.87896309,0.00024931,2]
[313253830,1707029442760,-548.92211531,0.00024931,2]
[313253832,1707029442768,-520.23182579,0.00024931,2]
[313253833,1707029442778,-506.4151644,0.00024931,2]
[313253835,1707029442787,-513.04652672,0.00024931,2]
[313253837,1707029442798,-510.3265111,0.00024931,2]
[313253838,1707029442807,-623.67805525,0.00024931,2]
[313253839,1707029442816,-506.16568631,0.00024931,2]
[313253840,1707029442825,-500.70462758,0.00024931,2]
[313253841,1707029442834,-519.71253354,0.00024931,2]
[313253842,1707029442843,-613.07535178,0.00024931,2]
[313253843,1707029442853,-503.66424811,0.00024931,2]
[313253844,1707029442861,-505.99347736,0.00024931,2]
[313253846,1707029442871,-612.45342944,0.00024931,2]
[313253848,1707029442880,-1118.5,0.00024931,2]
[313253850,1707029442889,-198.09757379,0.00024931,2]
[313253851,1707029442898,-514.94925198,0.00024931,2]
[313253852,1707029442906,-517.68111553,0.00024931,2]
[313253853,1707029442915,-546.61512674,0.00024931,2]
[313253855,1707029442924,-504.51574847,0.00024931,2]
[313253856,1707029442933,-509.66259951,0.00024931,2]
[313253858,1707029442941,-520.91309007,0.00024931,2]
[313253859,1707029442950,-500.0,0.00024931,2]
[313253860,1707029442959,-516.75452131,0.00024931,2]
[313253861,1707029442968,-309.69722562,0.00024931,2]
[313253862,1707029442977,-155.53669552,0.00024931,2]
[313253863,1707029442986,-382.75308902,0.00024931,2]
[313253864,1707029442995,-505.54881298,0.00024931,2]
[313253865,1707029443004,-507.37033861,0.00024931,2]
[313253866,1707029443013,-510.57141999,0.00024931,2]
[313253867,1707029443022,-500.0,0.00024931,2]
[313253868,1707029443031,-503.62007348,0.00024931,2]
[313253869,1707029443040,-516.56680437,0.00024931,2]
[313253871,1707029443050,-507.59076123,0.00024931,2]
[313253872,1707029443059,-506.16504325,0.00024931,2]
[313253873,1707029443068,-513.84858838,0.00024931,2]
[313253874,1707029443077,-503.04363598,0.00024931,2]
[313253875,1707029443086,-437.72955825,0.00024931,2]
[313253877,1707029443095,-276.59375437,0.00024931,2]
[313253878,1707029443104,-519.57795889,0.00024931,2]
[313253879,1707029443113,-507.93292986,0.00024931,2]
[313253880,1707029443123,-504.85159508,0.00024931,2]
[313253881,1707029443131,-513.96748172,0.00024931,2]
[313253882,1707029443140,-500.0,0.00024931,2]
[313253883,1707029443149,-503.39558083,0.00024931,2]
[313253884,1707029443158,-500.0,0.00024931,2]
[313253885,1707029443166,-500.0,0.00024931,2]
[313253886,1707029443175,-513.38497296,0.00024931,2]
[313253887,1707029443184,-503.33175671,0.00024931,2]
[313253888,1707029443195,-506.92338031,0.00024931,2]
[313253890,1707029443204,-503.29139823,0.00024931,2]
[313253891,1707029443214,-207.379565,0.00024931,2]
[313253893,1707029443222,-207.379565,0.00024931,2]
[313253894,1707029443232,-505.46626339,0.00024931,2]
[313253895,1707029443242,-503.05608015,0.00024931,2]
[313253896,1707029443255,-500.69580883,0.00024931,2]
[313253897,1707029443265,-1374.89,0.00024931,2]
[313253898,1707029443274,-503.71056961,0.00024931,2]
[313253899,1707029443283,-511.58832518,0.00024931,2]
[313253900,1707029443292,-511.55552061,0.00024931,2]
[313253901,1707029443303,-507.13503847,0.00024931,2]
[313253902,1707029443312,-550.44852803,0.00024931,2]
[313253903,1707029443321,-512.75714269,0.00024931,2]
[313253904,1707029443330,-501.75784994,0.00024931,2]
[313253905,1707029443339,-503.9630838,0.00024931,2]
[313253906,1707029443348,-529.52014614,0.00024931,2]
[313253907,1707029443358,-520.36,0.00024931,2]
[313253908,1707029443367,-503.53788659,0.00024931,2]
[313253909,1707029443376,-529.01979923,0.00024931,2]
[313253910,1707029443385,-500.0,0.00024931,2]
[313253911,1707029443394,-500.0,0.00024931,2]
[313253912,1707029443404,-683.3,0.00024931,2]
[313253913,1707029443413,-597.0120252,0.00024931,2]
[313253914,1707029443423,-1004.88413379,0.00024931,2]
[313253915,1707029443434,-504.14169953,0.00024931,2]
[313253916,1707029443443,-230.42966167,0.00024931,2]
[313253917,1707029443452,-531.09442611,0.00024931,2]
[313253918,1707029443463,-511.20204272,0.00024931,2]
[313253919,1707029443472,-503.08390582,0.00024931,2]
[313253920,1707029443481,-940.83,0.00024931,2]
[313253921,1707029443491,-154.382796,0.00024931,2]
[313253922,1707029443500,-207.88785,0.00024931,2]
[313253923,1707029443509,-207.88785,0.00024931,2]
[313253924,1707029443519,-530.42572567,0.00024931,2]
[313253925,1707029443529,-500.0,0.00024931,2]
[313253926,1707029443538,-372.43009058,0.00024931,2]
[313253927,1707029443548,-523.87004694,0.00024931,2]
[313253928,1707029443558,-500.0,0.00024931,2]
[313253929,1707029443567,-267.73986713,0.00024931,2]
[313253930,1707029443577,-611.45085992,0.00024931,2]
[313253931,1707029443586,-300.59973165,0.00024931,2]
[313253932,1707029443595,-529.43933627,0.00024931,2]
[313253933,1707029443604,-500.0,0.00024931,2]
[313253934,1707029443614,-520.26429683,0.00024931,2]
[313253935,1707029443624,-526.72353238,0.00024931,2]
[313253936,1707029443633,-511.82233681,0.00024931,2]
[313253937,1707029443643,-2027.64,0.00024931,2]
[313253938,1707029443653,-3794.7,0.00024931,2]
[313253939,1707029443663,-500.0,0.00024931,2]
[313253940,1707029443673,-2145.0,0.00024931,2]
[313253941,1707029443683,-549.41007304,0.00024931,2]
[313253942,1707029443693,-500.0,0.00024931,2]
[313253943,1707029443702,-1010.36,0.00024931,2]
[313253944,1707029443711,-508.70125181,0.00024931,2]
[313253945,1707029443721,-500.0,0.00024931,2]
[313253946,1707029443731,-500.0,0.00024931,2]
[313253947,1707029443741,-514.4404269,0.00024931,2]
[313253948,1707029443752,-512.55636946,0.00024931,2]
[313253949,1707029443761,-505.70814131,0.00024931,2]
[313253950,1707029443771,-503.21050074,0.00024931,2]
[313253951,1707029443780,-500.0,0.00024931,2]
[313253952,1707029443791,-3430.98,0.00024931,2]
[313253953,1707029443801,-248.58724639,0.00025,3]
[313253954,1707029443812,-211.18325336,0.00025,2]
[313253955,1707029443822,-534.83687431,0.00025,2]
[313253956,1707029443831,-1831.07341754,0.00025,2]
[313253957,1707029443841,-809.20508459,0.00025,2]
[313253958,1707029443863,-1237.53217504,0.00025,2]
[313253959,1707029443952,-473.97,0.00024647,3]
[313253960,1707029443963,-42.880155,0.00025,2]
[313253987,1707029446270,-530.86604157,0.00024656,2]
[313253989,1707029446279,-244.64306146,0.00024656,2]
[313253991,1707029446289,-199.742756,0.0002493,2]
[313253993,1707029446300,-820.30724147,0.00024999,2]
[313253994,1707029446309,-5051.53424862,0.00025,2]
[313253995,1707029446318,-4735.25519825,0.00025,2]
[313253996,1707029446328,-155.92144397,0.00025,2]
[313253997,1707029446337,-155.45264588,0.00025,2]
[313253998,1707029446347,-500.0,0.00025,2]
[313254000,1707029446356,-151.0,0.00025,2]
[313254001,1707029446366,-578.0,0.000251,2]
[313254002,1707029446375,-280.0,0.00025174,7]
[313254003,1707029446384,-8.44946278,0.00025204,2]
[313254004,1707029446396,-491.55053722,0.00025204,2]
[313254005,1707029446407,-774.05736278,0.00025204,2]
[313254006,1707029446419,-264.71263722,0.00025204,2]
[313254007,1707029446428,-151.0,0.00025205,2]
[313254008,1707029446437,-12.44736278,0.00025205,2]
[313254052,1707030235856,1638.3538228,0.00019632,2]
[313254053,1707030279056,24900.0,0.00019629,2]
[313254056,1707030520749,-159.16620816,0.00020568,2]
[313254057,1707030520782,-155.0,0.00020569,2]
[313254058,1707030520812,-155.0,0.00020569,4]
[313254059,1707030520845,-273.2180183,0.0002057,2]
[313254060,1707030520874,-158.6338715,0.00020575,2]
[313254061,1707030520906,-186.27141196,0.00020575,2]
[313254062,1707030520938,-2036.13,0.00020637,3]
[313254063,1707030520969,-1696.77,0.00020637,3]
[313254064,1707030520988,-159.16620816,0.00020646,2]
[313254065,1707030520999,-155.0,0.00020646,2]
[313254066,1707030521010,-155.0,0.00020646,2]
[313254067,1707030521022,-273.2180183,0.00020646,2]
[313254068,1707030521033,-158.6338715,0.00020646,2]
[313254069,1707030521044,-186.27141196,0.00020646,2]
[313254070,1707030521055,-2036.13,0.00020646,2]
[313254071,1707030521066,-1696.77,0.00020646,2]
[313254072,1707030521084,-4359.62098016,0.00020646,2]
[313254074,1707030536164,155.0,0.00018581,3]
[313254106,1707030634657,-155.0,0.00020643,4]
[313254108,1707030634667,-213.92828324,0.00020644,2]
[313254109,1707030634676,-1487.20933595,0.00020644,2]
[313254110,1707030634685,-163.2427459,0.00020645,2]
[313254111,1707030634695,-820.30724147,0.00020675,2]
[313254112,1707030634704,-185.81058045,0.00020678,2]
[313254113,1707030634713,-155.0,0.00022,2]
[313254116,1707030634722,-158.6338715,0.00022566,2]
[313254119,1707030634731,-200.0,0.00022722,7]
[313254122,1707030634740,-19124.88822616,0.00022817,2]
[313254125,1707030634750,-1574.63,0.00022818,3]
[313254128,1707030634759,-1312.19,0.00022818,3]
[313254130,1707030634769,-1093.49,0.00022818,3]
[313254132,1707030634778,-911.25,0.00022818,3]
[313254134,1707030634787,-1582.87149968,0.00022827,2]
[313254135,1707030634797,-83879.34546947,0.00022828,2]
[313254137,1707030634806,-3761.45932987,0.0002283,2]
[313254139,1707030634816,-150.0,0.00022831,2]
[313254140,1707030634825,-358.56819931,0.00023118,2]
[313254141,1707030634834,-272.72631424,0.00023119,2]
[313254142,1707030634843,-155.8961339,0.00023119,2]
[313254143,1707030634852,-5197.43828069,0.00023121,2]
[313254144,1707030634861,-5000.0,0.00023121,2]
[313254145,1707030634871,-9559.1923818,0.00023121,2]
[313254146,1707030634880,-15085.79961454,0.00023121,2]
[313254147,1707030634889,-9117.67951963,0.00023121,2]
[313254148,1707030634898,-186.27141193,0.00023815,2]
[313254149,1707030634907,-525.34011728,0.00024555,2]
[313254150,1707030634916,-556.41767677,0.00024555,2]
[313254151,1707030634925,-225.85911238,0.00024555,2]
[313254152,1707030634934,-930.02352378,0.00024555,2]
[313254153,1707030634954,-69222.07849877,0.00024557,2]
[313254154,1707030634967,-5209.49994741,0.00024557,2]
[313254161,1707030640109,-2504.0,0.00024557,2]
[313254162,1707030640218,-133772.94844787,0.00024557,2]
[313254163,1707030640229,-1233.34553121,0.00024557,2]
[313254379,1707030645285,-3635.94593381,0.00024557,2]
[313254380,1707030645297,-7306.7909938,0.00024557,2]
[313254392,1707030646533,-53115.39064713,0.00024557,2]
[313254393,1707030646543,-158.6338715,0.00024557,2]
[313254394,1707030646553,-759.37,0.00024647,3]
[313254395,1707030646562,-505.32520986,0.00024657,2]
[313254396,1707030646571,-500.0,0.00024657,2]
[313254397,1707030646581,-500.0,0.00024657,2]
[313254398,1707030646594,-531.51800535,0.00024657,2]
[313254399,1707030646603,-500.0,0.00024657,2]
[313254400,1707030646612,-500.0,0.00024657,2]
[313254401,1707030646622,-624.22168988,0.00024657,2]
[313254402,1707030646631,-453.29463188,0.00024657,2]
[313254403,1707030646640,-1000.0,0.00024657,2]
[313254404,1707030646649,-1066.44,0.00024657,2]
[313254405,1707030646658,-499.27363194,0.00024657,2]
[313254406,1707030646669,-520.5942577,0.00024657,2]
[313254407,1707030646678,-592.74027159,0.00024657,2]
[313254408,1707030646687,-500.0,0.00024657,2]
[313254409,1707030646696,-500.0,0.00024657,2]
[313254410,1707030646705,-500.0,0.00024657,2]
[313254411,1707030646714,-551.21022533,0.00024657,2]
[313254412,1707030646724,-615.78398228,0.00024657,2]
[313254413,1707030646733,-500.0,0.00024657,2]
[313254414,1707030646742,-500.0,0.00024657,2]
[313254415,1707030646751,-500.0,0.00024657,2]
[313254416,1707030646760,-500.0,0.00024657,2]
[313254417,1707030646770,-500.0,0.00024657,2]
[313254418,1707030646779,-500.0,0.00024657,2]
[313254419,1707030646789,-500.0,0.00024657,2]
[313254420,1707030646798,-500.0,0.00024657,2]
[313254421,1707030646808,-500.0,0.00024657,2]
[313254422,1707030646817,-492.41737592,0.00024657,2]
[313254423,1707030646826,-221.43613379,0.00024657,2]
[313254424,1707030646835,-504.88583066,0.00024657,2]
[313254425,1707030646845,-313.17066389,0.00024657,2]
[313254426,1707030646854,-500.0,0.00024657,2]
[313254427,1707030646863,-500.0,0.00024657,2]
[313254428,1707030646873,-500.0,0.00024657,2]
[313254429,1707030646882,-500.0,0.00024657,2]
[313254430,1707030646891,-507.05821882,0.00024657,2]
[313254431,1707030646901,-503.12568879,0.00024657,2]
[313254432,1707030646910,-500.0,0.00024657,2]
[313254433,1707030646919,-526.83444137,0.00024657,2]
[313254434,1707030646928,-504.00502744,0.00024657,2]
[313254435,1707030646937,-639.97375264,0.00024657,2]
[313254436,1707030646946,-500.0,0.00024657,2]
[313254437,1707030646955,-506.74273355,0.00024657,2]
[313254438,1707030646964,-501.64659873,0.00024657,2]
[313254439,1707030646973,-500.0,0.00024657,2]
[313254440,1707030646983,-500.0,0.00024657,2]
[313254441,1707030646992,-522.9927766,0.00024657,2]
[313254442,1707030647001,-504.39948425,0.00024657,2]
[313254443,1707030647010,-500.0,0.00024657,2]
[313254444,1707030647018,-500.0,0.00024657,2]
[313254445,1707030647027,-507.02865338,0.00024657,2]
[313254446,1707030647037,-300.0,0.00024657,2]
[313254447,1707030647046,-500.0,0.00024657,2]
[313254448,1707030647055,-617.49644806,0.00024657,2]
[313254449,1707030647064,-500.0,0.00024657,2]
[313254450,1707030647073,-514.25790323,0.00024657,2]
[313254451,1707030647082,-432.481948,0.00024657,2]
[313254452,1707030647091,-508.35668287,0.00024657,2]
[313254453,1707030647100,-500.0,0.00024657,2]
[313254454,1707030647109,-500.0,0.00024657,2]
[313254455,1707030647118,-500.0,0.00024657,2]
[313254456,1707030647127,-1311.32,0.00024657,2]
[313254457,1707030647135,-500.0,0.00024657,2]
[313254458,1707030647144,-500.0,0.00024657,2]
[313254459,1707030647154,-500.0,0.00024657,2]
[313254460,1707030647163,-500.0,0.00024657,2]
[313254461,1707030647172,-500.0,0.00024657,2]
[313254462,1707030647181,-655.68,0.00024657,2]
[313254463,1707030647190,-500.0,0.00024657,2]
[313254464,1707030647199,-500.0,0.00024657,2]
[313254465,1707030647208,-3186.74,0.00024657,2]
[313254466,1707030647217,-1000.0,0.00024657,2]
[313254467,1707030647227,-500.0,0.00024657,2]
[313254468,1707030647235,-500.0,0.00024657,2]
[313254469,1707030647245,-547.01945607,0.00024657,2]
[313254470,1707030647254,-500.0,0.00024657,2]
[313254471,1707030647263,-904.09,0.00024657,2]
[313254472,1707030647271,-500.0,0.00024657,2]
[313254473,1707030647281,-500.0,0.00024657,2]
[313254474,1707030647290,-500.0,0.00024657,2]
[313254475,1707030647299,-500.0,0.00024657,2]
[313254476,1707030647309,-692.33,0.00024657,2]
[313254477,1707030647319,-692.33,0.00024657,2]
[313254478,1707030647328,-692.33,0.00024657,2]
[313254479,1707030647337,-692.33,0.00024657,2]
[313254480,1707030647347,-692.33,0.00024657,2]
[313254481,1707030647356,-692.33,0.00024657,2]
[313254482,1707030647365,-692.33,0.00024657,2]
[313254483,1707030647375,-692.33,0.00024657,2]
[313254484,1707030647384,-692.33,0.00024657,2]
[313254485,1707030647393,-692.33,0.00024657,2]
[313254486,1707030647402,-500.0,0.00024657,2]
[313254487,1707030647411,-500.0,0.00024657,2]
[313254488,1707030647420,-500.0,0.00024657,2]
[313254489,1707030647429,-500.0,0.00024657,2]
[313254490,1707030647438,-1900.33,0.00024657,2]
[313254491,1707030647447,-500.0,0.00024657,2]
[313254492,1707030647555,-4236.53,0.00024657,2]
[313254493,1707030647568,-512.17744576,0.00024657,2]
[313254494,1707030647578,-2007.92,0.00024657,2]
[313254495,1707030647587,-500.0,0.00024657,2]
[313254496,1707030647600,-509.87387061,0.00024657,2]
[313254497,1707030647609,-367.49541746,0.00024657,2]
[313254498,1707030647618,-500.0,0.00024657,2]
[313254499,1707030647627,-500.0,0.00024657,2]
[313254500,1707030647637,-500.0,0.00024657,2]
[313254501,1707030647646,-511.43087087,0.00024657,2]
[313254502,1707030647656,-1302.27,0.00024657,2]
[313254503,1707030647667,-506.06132845,0.00024657,2]
[313254504,1707030647676,-506.08739658,0.00024657,2]
[313254505,1707030647685,-500.0,0.00024657,2]
[313254506,1707030647694,-500.0,0.00024657,2]
[313254507,1707030647703,-233.67569509,0.00024657,2]
[313254508,1707030647712,-504.20334692,0.00024657,2]
[313254509,1707030647722,-510.66545304,0.00024657,2]
[313254510,1707030647731,-510.6540375,0.00024657,2]
[313254511,1707030647740,-545.76998964,0.00024657,2]
[313254512,1707030647750,-506.10064889,0.00024657,2]
[313254513,1707030647761,-1718.76907116,0.00024678,2]
[313254514,1707030647770,-208.7504654,0.00024678,2]
[313254515,1707030647779,-167.62697216,0.00024822,2]
[313254516,1707030647788,-500.0,0.00024826,2]
[313254517,1707030647797,-500.0,0.00024926,2]
[313254518,1707030647807,-500.0,0.00024928,2]
[313254519,1707030647816,-500.0,0.00024929,2]
[313254520,1707030647826,-500.0,0.0002493,2]
[313254521,1707030647835,-500.0,0.00024931,2]
[313254522,1707030647844,-500.0,0.00024931,2]
[313254523,1707030647853,-500.0,0.00024931,2]
[313254524,1707030647862,-1000.0,0.00024931,2]
[313254525,1707030647871,-1066.44,0.00024931,2]
[313254526,1707030647881,-500.0,0.00024931,2]
[313254527,1707030647890,-509.77968688,0.00024931,2]
[313254528,1707030647899,-500.0,0.00024931,2]
[313254529,1707030647908,-506.88620748,0.00024931,2]
[313254530,1707030647917,-500.0,0.00024931,2]
[313254531,1707030647926,-500.0,0.00024931,2]
[313254532,1707030647935,-503.80621493,0.00024931,2]
[313254533,1707030647945,-507.95106505,0.00024931,2]
[313254534,1707030647954,-500.0,0.00024931,2]
[313254535,1707030647964,-503.54806144,0.00024931,2]
[313254536,1707030647973,-500.0,0.00024931,2]
[313254537,1707030647982,-280.82270446,0.00024931,2]
[313254538,1707030647991,-500.0,0.00024931,2]
[313254539,1707030648000,-300.0,0.00024931,2]
[313254540,1707030648009,-500.0,0.00024931,2]
[313254541,1707030648018,-500.0,0.00024931,2]
[313254542,1707030648028,-1311.32,0.00024931,2]
[313254543,1707030648038,-500.0,0.00024931,2]
[313254544,1707030648047,-615.41,0.00024931,2]
[313254545,1707030648060,-500.0,0.00024931,2]
[313254546,1707030648071,-500.0,0.00024931,2]
[313254547,1707030648082,-500.0,0.00024931,2]
[313254548,1707030648092,-655.68,0.00024931,2]
[313254549,1707030648103,-531.2569005,0.00024931,2]
[313254550,1707030648113,-500.0,0.00024931,2]
[313254551,1707030648124,-3186.74,0.00024931,2]
[313254552,1707030648135,-1000.0,0.00024931,2]
[313254553,1707030648145,-500.0,0.00024931,2]
[313254554,1707030648158,-500.0,0.00024931,2]
[313254555,1707030648168,-500.0,0.00024931,2]
[313254556,1707030648179,-904.09,0.00024931,2]
[313254557,1707030648190,-500.0,0.00024931,2]
[313254558,1707030648200,-500.0,0.00024931,2]
[313254559,1707030648211,-500.0,0.00024931,2]
[313254560,1707030648222,-500.0,0.00024931,2]
[313254561,1707030648232,-500.0,0.00024931,2]
[313254562,1707030648240,-500.0,0.00024931,2]
[313254563,1707030648250,-1900.33,0.00024931,2]
[313254564,1707030648259,-500.0,0.00024931,2]
[313254565,1707030648270,-4236.53,0.00024931,2]
[313254566,1707030648279,-2007.92,0.00024931,2]
[313254567,1707030648288,-500.0,0.00024931,2]
[313254568,1707030648298,-500.0,0.00024931,2]
[313254569,1707030648311,-465.99391442,0.00024931,2]
[313254570,1707030648321,-500.0,0.00024931,2]
[313254571,1707030648330,-1302.27,0.00024931,2]
[313254572,1707030648342,-500.0,0.00024931,2]
[313254573,1707030648352,-506.67179528,0.00024931,2]
[313254574,1707030648362,-499.20036564,0.0002496,5]
[313254575,1707030648372,-280.0,0.00024994,7]
[313254576,1707030648381,-273.57718123,0.00024998,2]
[313254577,1707030648391,-640.43364993,0.00024998,2]
[313254578,1707030648400,-692.33,0.00024998,2]
[313254579,1707030648410,-1853.65017703,0.00024999,2]
[313254580,1707030648419,-500.0,0.00024999,2]
[313254581,1707030648428,-1831.07341754,0.00025,2]
[313254582,1707030648437,-534.83687431,0.00025,2]
[313254583,1707030648447,-7141.15166325,0.00025,2]
[313254584,1707030648456,-155.0,0.00025,2]
[313254585,1707030648466,-4735.25519825,0.00025,2]
[313254586,1707030648475,-454.0,0.000251,2]
[313254587,1707030648484,-151.0,0.000252,2]
[313254588,1707030648494,-1237.84235552,0.000252,4]
[313254589,1707030648504,-1532.70135913,0.00025204,2]
[313254590,1707030648514,-182.99451448,0.00025204,2]
[313254591,1707030648525,-155.23542657,0.00025204,2]
[313254592,1707030648536,-692.33,0.00025204,2]
[313254593,1707030648546,-1830.32102826,0.00025205,2]
[313254594,1707030648558,-155.0,0.00025205,2]
[313254595,1707030648567,-765.62714724,0.00025205,2]
[313254596,1707030648577,-3199.36540465,0.00025205,2]
[313254597,1707030648589,-1066.44,0.00025205,2]
[313254598,1707030648601,-500.0,0.00025205,2]
[313254599,1707030648610,-500.0,0.00025205,2]